[Event "Titled Tuesday Blitz June 20 Early 2023"]
[White "Kotepalli, Sai Nirupama"]
[Black "Koellner, Ruben Gideon"]
[WhiteFideId "5039444"]
[BlackFideId "12993093"]
[WhiteElo "2352"]
[BlackElo "2314"]
[Result "1-0"]
[Round "2"]
[TimeControl "180+2"]
[Date "2023.06.20"]
[WhiteClock "0:00:11"]
[BlackClock "0:00:15"]
[Board "156"]

1. e4 {[%clk 0:03:00]}  d6 {[%clk 0:03:00]} 2. d3 {[%clk 0:03:00]}  Nf6 {[%clk 0:03:00]} 3. Nf3 {[%clk 0:03:00]}  e5 {[%clk 0:03:01]} 4. g3 {[%clk 0:02:56]}  Be7 {[%clk 0:03:01]} 5. Bg2 {[%clk 0:02:48]}  O-O {[%clk 0:03:02]} 6. O-O {[%clk 0:02:36]}  c5 {[%clk 0:03:02]} 7. c3 {[%clk 0:02:23]}  Nc6 {[%clk 0:03:02]} 8. a3 {[%clk 0:02:23]}  b5 {[%clk 0:03:01]} 9. b4 {[%clk 0:02:22]}  a5 {[%clk 0:02:59]} 10. bxc5 {[%clk 0:02:12]}  dxc5 {[%clk 0:03:00]} 11. Be3 {[%clk 0:02:12]}  Be6 {[%clk 0:02:59]} 12. Qc2 {[%clk 0:02:09]}  b4 {[%clk 0:02:56]} 13. axb4 {[%clk 0:02:00]}  axb4 {[%clk 0:02:56]} 14. Rxa8 {[%clk 0:01:59]}  Qxa8 {[%clk 0:02:57]} 15. Nbd2 {[%clk 0:01:54]}  Qa6 {[%clk 0:02:52]} 16. Ng5 {[%clk 0:01:45]}  Bd7 {[%clk 0:02:47]} 17. Nc4 {[%clk 0:01:34]}  Rb8 {[%clk 0:02:46]} 18. Rb1 {[%clk 0:01:30]}  Qc8 {[%clk 0:02:29]} 19. f4 {[%clk 0:01:19]}  Qc7 {[%clk 0:02:18]} 20. Nf3 {[%clk 0:01:04]}  Be6 {[%clk 0:02:17]} 21. Ncxe5 {[%clk 0:01:01]}  Nxe5 {[%clk 0:02:17]} 22. Nxe5 {[%clk 0:00:57]}  b3 {[%clk 0:02:14]} 23. Qd2 {[%clk 0:00:51]}  c4 {[%clk 0:02:10]} 24. dxc4 {[%clk 0:00:46]}  Bxc4 {[%clk 0:02:11]} 25. Qd4 {[%clk 0:00:42]}  Be6 {[%clk 0:02:09]} 26. f5 {[%clk 0:00:35]}  Bc8 {[%clk 0:02:06]} 27. Nd3 {[%clk 0:00:24]}  Ba6 {[%clk 0:01:57]} 28. Bf4 {[%clk 0:00:22]}  Qc8 {[%clk 0:01:16]} 29. Bxb8 {[%clk 0:00:18]}  Qxb8 {[%clk 0:01:14]} 30. Nc5 {[%clk 0:00:18]}  Bxc5 {[%clk 0:01:00]} 31. Qxc5 {[%clk 0:00:19]}  Bd3 {[%clk 0:00:59]} 32. Rb2 {[%clk 0:00:18]}  Bc2 {[%clk 0:00:47]} 33. e5 {[%clk 0:00:16]}  Ng4 {[%clk 0:00:46]} 34. e6 {[%clk 0:00:13]}  fxe6 {[%clk 0:00:43]} 35. fxe6 {[%clk 0:00:14]}  Nf6 {[%clk 0:00:37]} 36. e7 {[%clk 0:00:13]}  Kf7 {[%clk 0:00:35]} 37. Bc6 {[%clk 0:00:12]}  Qc8 {[%clk 0:00:20]} 38. Bd5+ {[%clk 0:00:11]}  Nxd5 {[%clk 0:00:17]} 39. Qxc8 {[%clk 0:00:11]}  Nxe7 {[%clk 0:00:18]} 40. Qc4+ {[%clk 0:00:10]}  Kf6 {[%clk 0:00:18]} 41. Rxb3 {[%clk 0:00:09]}  Bxb3 {[%clk 0:00:17]} 42. Qxb3 {[%clk 0:00:10]}  Ke5 {[%clk 0:00:18]} 43. Qb5+ {[%clk 0:00:09]}  Kd6 {[%clk 0:00:18]} 44. c4 {[%clk 0:00:08]}  h6 {[%clk 0:00:18]} 45. c5+ {[%clk 0:00:08]}  Kd5 {[%clk 0:00:18]} 46. Qb6 {[%clk 0:00:06]}  Nc6 {[%clk 0:00:17]} 47. Kf2 {[%clk 0:00:06]}  g6 {[%clk 0:00:15]} 48. g4 {[%clk 0:00:06]}  g5 {[%clk 0:00:14]} 49. h3 {[%clk 0:00:06]}  Nd4 {[%clk 0:00:13]} 50. Qd6+ {[%clk 0:00:06]}  Ke4 {[%clk 0:00:13]} 51. Qxd4+ {[%clk 0:00:06]}  Kxd4 {[%clk 0:00:13]} 52. c6 {[%clk 0:00:07]}  Ke5 {[%clk 0:00:14]} 53. c7 {[%clk 0:00:08]}  h5 {[%clk 0:00:15]} 54. c8=Q {[%clk 0:00:08]}  hxg4 {[%clk 0:00:15]} 55. Qxg4 {[%clk 0:00:09]}  Kf6 {[%clk 0:00:16]} 56. Kf3 {[%clk 0:00:09]}  Kg6 {[%clk 0:00:15]} 57. Ke4 {[%clk 0:00:10]}  Kh6 {[%clk 0:00:14]} 58. Kf5 {[%clk 0:00:10]}  Kg7 {[%clk 0:00:15]} 59. Qxg5+ {[%clk 0:00:10]}  Kh8 {[%clk 0:00:15]} 60. Qe7 {[%clk 0:00:10]}  Kg8 {[%clk 0:00:15]} 61. Kf6 {[%clk 0:00:10]}  Kh8 {[%clk 0:00:15]} 62. Qg7# {[%clk 0:00:11]} 1-0


[Site "https://www.chess.com"]

[Event "Titled Tuesday Blitz June 20 Early 2023"]
[White "Fernandez Siles, Luis"]
[Black "Zochowski, Kacper"]
[WhiteFideId "2209420"]
[BlackFideId "1125494"]
[WhiteElo "2195"]
[BlackElo "2235"]
[Result "1-0"]
[Round "2"]
[TimeControl "180+2"]
[Date "2023.06.20"]
[WhiteClock "0:00:55"]
[BlackClock "0:02:05"]
[Board "157"]

1. e4 {[%clk 0:03:00]}  d6 {[%clk 0:03:00]} 2. Nc3 {[%clk 0:03:00]}  Nf6 {[%clk 0:03:01]} 3. f4 {[%clk 0:03:00]}  e5 {[%clk 0:02:58]} 4. Nf3 {[%clk 0:02:59]}  d5 {[%clk 0:02:58]} 5. Nxe5 {[%clk 0:02:37]}  dxe4 {[%clk 0:02:56]} 6. Bc4 {[%clk 0:02:34]}  Be6 {[%clk 0:02:57]} 7. Qe2 {[%clk 0:02:29]}  Bd6 {[%clk 0:02:50]} 8. Bxe6 {[%clk 0:02:21]}  fxe6 {[%clk 0:02:50]} 9. Nxe4 {[%clk 0:02:07]}  O-O {[%clk 0:02:49]} 10. Ng5 {[%clk 0:01:59]}  Bxe5 {[%clk 0:02:45]} 11. fxe5 {[%clk 0:01:48]}  Qd5 {[%clk 0:02:43]} 12. c4 {[%clk 0:01:34]}  Qa5 {[%clk 0:02:33]} 13. b4 {[%clk 0:01:31]}  Qxb4 {[%clk 0:02:33]} 14. exf6 {[%clk 0:01:28]}  Rxf6 {[%clk 0:02:33]} 15. Qe4 {[%clk 0:01:17]}  g6 {[%clk 0:02:11]} 16. Rb1 {[%clk 0:01:16]}  Qc5 {[%clk 0:02:08]} 17. d4 {[%clk 0:01:10]}  Qa5+ {[%clk 0:02:07]} 18. Bd2 {[%clk 0:01:06]}  Qxa2 {[%clk 0:02:07]} 19. Qxb7 {[%clk 0:01:03]}  Kg7 {[%clk 0:02:08]} 20. Qxc7+ {[%clk 0:01:00]}  Kh8 {[%clk 0:02:05]} 21. Qd8+ {[%clk 0:00:56]}  Kg7 {[%clk 0:02:05]} 22. Qe7+ {[%clk 0:00:56]}  Kh6 {[%clk 0:02:05]} 23. Qxh7# {[%clk 0:00:55]} 1-0


[Site "https://www.chess.com"]

[Event "Titled Tuesday Blitz June 20 Early 2023"]
[White "Daianu, Cristian-Clement"]
[Black "Filgueira, Hernan"]
[WhiteFideId "1208926"]
[BlackFideId "101770"]
[WhiteElo "2097"]
[BlackElo "2363"]
[Result "1/2-1/2"]
[Round "2"]
[TimeControl "180+2"]
[Date "2023.06.20"]
[WhiteClock "0:00:17"]
[BlackClock "0:00:35"]
[Board "159"]

1. d4 {[%clk 0:03:00]}  Nf6 {[%clk 0:02:57]} 2. Bf4 {[%clk 0:02:59]}  c5 {[%clk 0:02:56]} 3. e3 {[%clk 0:02:57]}  g6 {[%clk 0:02:54]} 4. Nf3 {[%clk 0:02:55]}  Bg7 {[%clk 0:02:54]} 5. h3 {[%clk 0:02:55]}  O-O {[%clk 0:02:53]} 6. c3 {[%clk 0:02:54]}  d6 {[%clk 0:02:52]} 7. Bd3 {[%clk 0:02:49]}  Nc6 {[%clk 0:02:44]} 8. O-O {[%clk 0:02:48]}  cxd4 {[%clk 0:02:41]} 9. cxd4 {[%clk 0:02:47]}  Nd5 {[%clk 0:02:40]} 10. Bh2 {[%clk 0:02:47]}  e5 {[%clk 0:02:38]} 11. Nc3 {[%clk 0:02:26]}  Nde7 {[%clk 0:02:35]} 12. dxe5 {[%clk 0:02:12]}  dxe5 {[%clk 0:02:34]} 13. Qe2 {[%clk 0:02:12]}  h6 {[%clk 0:02:28]} 14. Rfd1 {[%clk 0:02:13]}  Qa5 {[%clk 0:02:25]} 15. Bc4 {[%clk 0:02:07]}  Bf5 {[%clk 0:02:23]} 16. e4 {[%clk 0:01:56]}  Be6 {[%clk 0:02:20]} 17. Bxe6 {[%clk 0:01:56]}  fxe6 {[%clk 0:02:19]} 18. Nh4 {[%clk 0:01:51]}  g5 {[%clk 0:02:15]} 19. Nf3 {[%clk 0:01:46]}  Nd4 {[%clk 0:02:11]} 20. Nxd4 {[%clk 0:01:40]}  exd4 {[%clk 0:02:11]} 21. Nb5 {[%clk 0:01:38]}  Nc6 {[%clk 0:01:53]} 22. Bd6 {[%clk 0:01:29]}  Rf7 {[%clk 0:01:48]} 23. e5 {[%clk 0:01:29]}  Qa6 {[%clk 0:01:43]} 24. Nxd4 {[%clk 0:01:18]}  Nxd4 {[%clk 0:01:41]} 25. Qxa6 {[%clk 0:01:18]}  Nf3+ {[%clk 0:01:41]} 26. gxf3 {[%clk 0:01:18]}  bxa6 {[%clk 0:01:41]} 27. Rd3 {[%clk 0:01:17]}  Rc8 {[%clk 0:01:39]} 28. Rad1 {[%clk 0:01:03]}  Rc2 {[%clk 0:01:36]} 29. R1d2 {[%clk 0:01:04]}  Rxd2 {[%clk 0:01:19]} 30. Rxd2 {[%clk 0:01:05]}  Rxf3 {[%clk 0:01:19]} 31. Kg2 {[%clk 0:01:04]}  Rf5 {[%clk 0:01:16]} 32. Re2 {[%clk 0:01:04]}  Kf7 {[%clk 0:01:14]} 33. Re4 {[%clk 0:01:04]}  Kg6 {[%clk 0:01:13]} 34. b3 {[%clk 0:00:57]}  Rf7 {[%clk 0:01:11]} 35. Ra4 {[%clk 0:00:58]}  Kf5 {[%clk 0:01:10]} 36. Rxa6 {[%clk 0:00:57]}  Rb7 {[%clk 0:01:08]} 37. Bc5 {[%clk 0:00:55]}  Bxe5 {[%clk 0:01:07]} 38. Rxa7 {[%clk 0:00:53]}  Rb5 {[%clk 0:01:07]} 39. Be3 {[%clk 0:00:53]}  Bb2 {[%clk 0:01:00]} 40. Rc7 {[%clk 0:00:51]}  e5 {[%clk 0:00:59]} 41. Rc5 {[%clk 0:00:51]}  Rb8 {[%clk 0:00:58]} 42. Rc2 {[%clk 0:00:50]}  Ba3 {[%clk 0:00:57]} 43. Rc4 {[%clk 0:00:41]}  Bb4 {[%clk 0:00:53]} 44. Bc5 {[%clk 0:00:41]}  Bd2 {[%clk 0:00:49]} 45. b4 {[%clk 0:00:38]}  Ke6 {[%clk 0:00:49]} 46. Rc2 {[%clk 0:00:34]}  Bf4 {[%clk 0:00:47]} 47. a4 {[%clk 0:00:33]}  Kd5 {[%clk 0:00:47]} 48. a5 {[%clk 0:00:32]}  Ra8 {[%clk 0:00:46]} 49. Be3 {[%clk 0:00:29]}  Rb8 {[%clk 0:00:43]} 50. Bc5 {[%clk 0:00:16]}  Ra8 {[%clk 0:00:41]} 51. Ra2 {[%clk 0:00:17]}  Kc4 {[%clk 0:00:40]} 52. a6 {[%clk 0:00:15]}  e4 {[%clk 0:00:39]} 53. a7 {[%clk 0:00:16]}  h5 {[%clk 0:00:36]} 54. Re2 {[%clk 0:00:16]}  Kd3 {[%clk 0:00:35]} 55. Ra2 {[%clk 0:00:16]}  Kc4 {[%clk 0:00:35]} 56. Re2 {[%clk 0:00:16]}  Kd3 {[%clk 0:00:35]} 57. Ra2 {[%clk 0:00:17]}  Kc4 {[%clk 0:00:35]} 1/2-1/2


[Site "https://www.chess.com"]

[Event "Titled Tuesday Blitz June 20 Early 2023"]
[White "Ovezdurdyyeva, Jemal"]
[Black "Martic, Ivan"]
[WhiteFideId "14001888"]
[BlackFideId "929301"]
[WhiteElo "2069"]
[BlackElo "2346"]
[Result "0-1"]
[Round "2"]
[TimeControl "180+2"]
[Date "2023.06.20"]
[WhiteClock "0:00:09"]
[BlackClock "0:01:48"]
[Board "160"]

1. e4 {[%clk 0:03:00]}  c5 {[%clk 0:03:00]} 2. Nf3 {[%clk 0:03:00]}  e6 {[%clk 0:02:59]} 3. d4 {[%clk 0:03:00]}  cxd4 {[%clk 0:03:00]} 4. Nxd4 {[%clk 0:02:59]}  a6 {[%clk 0:03:01]} 5. Nc3 {[%clk 0:02:58]}  b5 {[%clk 0:03:01]} 6. Be2 {[%clk 0:02:50]}  Qb6 {[%clk 0:03:00]} 7. O-O {[%clk 0:02:48]}  Bb7 {[%clk 0:02:54]} 8. Be3 {[%clk 0:02:46]}  Qc7 {[%clk 0:02:54]} 9. Bf3 {[%clk 0:02:35]}  d6 {[%clk 0:02:51]} 10. Rc1 {[%clk 0:02:27]}  Nf6 {[%clk 0:02:51]} 11. Qd3 {[%clk 0:02:26]}  Nbd7 {[%clk 0:02:51]} 12. Qe2 {[%clk 0:02:21]}  b4 {[%clk 0:02:46]} 13. Na4 {[%clk 0:02:16]}  Nxe4 {[%clk 0:02:45]} 14. c3 {[%clk 0:02:07]}  bxc3 {[%clk 0:02:44]} 15. Bxe4 {[%clk 0:01:59]}  Bxe4 {[%clk 0:02:38]} 16. Nxc3 {[%clk 0:01:59]}  Qb7 {[%clk 0:02:35]} 17. Nxe4 {[%clk 0:01:41]}  Qxe4 {[%clk 0:02:35]} 18. Nc6 {[%clk 0:01:26]}  d5 {[%clk 0:02:27]} 19. Rfe1 {[%clk 0:01:19]}  Bd6 {[%clk 0:02:25]} 20. Qd2 {[%clk 0:01:14]}  O-O {[%clk 0:02:21]} 21. Bc5 {[%clk 0:01:13]}  Qf4 {[%clk 0:02:15]} 22. Be3 {[%clk 0:00:53]}  Qxh2+ {[%clk 0:02:13]} 23. Kf1 {[%clk 0:00:53]}  Nf6 {[%clk 0:02:06]} 24. Ke2 {[%clk 0:00:40]}  Ne4 {[%clk 0:02:04]} 25. Qd4 {[%clk 0:00:39]}  Qh5+ {[%clk 0:01:55]} 26. f3 {[%clk 0:00:32]}  Ng3+ {[%clk 0:01:55]} 27. Kf2 {[%clk 0:00:31]}  Nf5 {[%clk 0:01:54]} 28. Qg4 {[%clk 0:00:16]}  Bg3+ {[%clk 0:01:52]} 29. Ke2 {[%clk 0:00:16]}  Bxe1 {[%clk 0:01:47]} 30. Qxh5 {[%clk 0:00:15]}  Ng3+ {[%clk 0:01:47]} 31. Kxe1 {[%clk 0:00:09]}  Nxh5 {[%clk 0:01:48]} 0-1


[Site "https://www.chess.com"]

[Event "Titled Tuesday Blitz June 20 Early 2023"]
[White "San Thit Lwin"]
[Black "Parpiev, Isaak"]
[WhiteFideId "13001272"]
[BlackFideId "34281576"]
[WhiteElo "2232"]
[BlackElo "2167"]
[Result "0-1"]
[Round "2"]
[TimeControl "180+2"]
[Date "2023.06.20"]
[WhiteClock "0:01:02"]
[BlackClock "0:02:22"]
[Board "165"]

1. Nf3 {[%clk 0:03:00]}  Nf6 {[%clk 0:02:59]} 2. c4 {[%clk 0:03:00]}  g6 {[%clk 0:02:57]} 3. Nc3 {[%clk 0:03:01]}  Bg7 {[%clk 0:02:58]} 4. e4 {[%clk 0:03:01]}  d6 {[%clk 0:02:58]} 5. d4 {[%clk 0:03:02]}  O-O {[%clk 0:02:58]} 6. Be2 {[%clk 0:03:03]}  e5 {[%clk 0:02:58]} 7. O-O {[%clk 0:03:04]}  Nc6 {[%clk 0:02:58]} 8. d5 {[%clk 0:03:04]}  Ne7 {[%clk 0:02:58]} 9. b4 {[%clk 0:03:05]}  Nh5 {[%clk 0:02:57]} 10. Re1 {[%clk 0:03:03]}  h6 {[%clk 0:02:52]} 11. c5 {[%clk 0:02:56]}  Nf4 {[%clk 0:02:47]} 12. Bc4 {[%clk 0:02:51]}  g5 {[%clk 0:02:40]} 13. a4 {[%clk 0:02:45]}  f5 {[%clk 0:02:39]} 14. exf5 {[%clk 0:02:38]}  Bxf5 {[%clk 0:02:39]} 15. Bb2 {[%clk 0:02:20]}  Neg6 {[%clk 0:02:36]} 16. Rc1 {[%clk 0:02:12]}  Bg4 {[%clk 0:02:33]} 17. Ne4 {[%clk 0:01:51]}  Nxg2 {[%clk 0:02:24]} 18. Rc3 {[%clk 0:01:38]}  N2h4 {[%clk 0:02:23]} 19. Be2 {[%clk 0:01:24]}  Nxf3+ {[%clk 0:02:21]} 20. Bxf3 {[%clk 0:01:23]}  Rxf3 {[%clk 0:02:22]} 21. Rxf3 {[%clk 0:01:23]}  Nh4 {[%clk 0:02:22]} 22. Rf8+ {[%clk 0:01:05]}  Qxf8 {[%clk 0:02:21]} 23. Qxg4 {[%clk 0:01:06]}  Nf3+ {[%clk 0:02:21]} 24. Kf1 {[%clk 0:01:02]}  Nxh2+ {[%clk 0:02:22]} 0-1


[Site "https://www.chess.com"]

[Event "Titled Tuesday Blitz June 20 Early 2023"]
[White "Khamzin, Olzhas"]
[Black "Shapiro, Daniel"]
[WhiteFideId "13701690"]
[BlackFideId "2001780"]
[WhiteElo "2201"]
[BlackElo "2333"]
[Result "1-0"]
[Round "2"]
[TimeControl "180+2"]
[Date "2023.06.20"]
[WhiteClock "0:01:03"]
[BlackClock "0:00:56"]
[Board "166"]

1. e4 {[%clk 0:03:00]}  e5 {[%clk 0:03:00]} 2. d4 {[%clk 0:03:00]}  exd4 {[%clk 0:02:59]} 3. Qxd4 {[%clk 0:03:00]}  Nc6 {[%clk 0:02:57]} 4. Qe3 {[%clk 0:03:01]}  Nf6 {[%clk 0:02:52]} 5. Nc3 {[%clk 0:03:01]}  Bb4 {[%clk 0:02:51]} 6. Bd2 {[%clk 0:03:01]}  d6 {[%clk 0:02:42]} 7. O-O-O {[%clk 0:03:01]}  O-O {[%clk 0:02:39]} 8. f4 {[%clk 0:03:02]}  Re8 {[%clk 0:02:37]} 9. Bd3 {[%clk 0:02:44]}  Bg4 {[%clk 0:02:26]} 10. Nf3 {[%clk 0:02:38]}  Bc5 {[%clk 0:02:25]} 11. Qe1 {[%clk 0:02:38]}  Nd4 {[%clk 0:02:23]} 12. Qg3 {[%clk 0:02:26]}  Bd7 {[%clk 0:02:07]} 13. e5 {[%clk 0:02:09]}  Ng4 {[%clk 0:02:03]} 14. Ne4 {[%clk 0:01:35]}  Bb6 {[%clk 0:01:42]} 15. Bc3 {[%clk 0:01:19]}  Nb5 {[%clk 0:01:31]} 16. Bxb5 {[%clk 0:01:11]}  Ne3 {[%clk 0:01:01]} 17. e6 {[%clk 0:01:04]}  Nf5 {[%clk 0:00:58]} 18. exd7 {[%clk 0:01:05]}  Nxg3 {[%clk 0:00:57]} 19. dxe8=Q+ {[%clk 0:01:05]}  Qxe8 {[%clk 0:00:57]} 20. Bxe8 {[%clk 0:01:04]}  Rxe8 {[%clk 0:00:57]} 21. Nxg3 {[%clk 0:01:03]}  Be3+ {[%clk 0:00:58]} 22. Kb1 {[%clk 0:01:03]}  Bxf4 {[%clk 0:00:56]} 23. Rhe1 {[%clk 0:01:03]} 1-0


[Site "https://www.chess.com"]

[Event "Titled Tuesday Blitz June 20 Early 2023"]
[White "Sovetbekova, Nurai"]
[Black "Ambartsumova, Karina"]
[WhiteFideId "13801910"]
[BlackFideId "4166299"]
[WhiteElo "1857"]
[BlackElo "2240"]
[Result "1/2-1/2"]
[Round "2"]
[TimeControl "180+2"]
[Date "2023.06.20"]
[WhiteClock "0:00:05"]
[BlackClock "0:00:07"]
[Board "167"]

1. d4 {[%clk 0:03:00]}  Nf6 {[%clk 0:02:59]} 2. c4 {[%clk 0:03:00]}  g6 {[%clk 0:02:58]} 3. Nc3 {[%clk 0:03:00]}  Bg7 {[%clk 0:02:58]} 4. e4 {[%clk 0:03:00]}  d6 {[%clk 0:02:59]} 5. Nf3 {[%clk 0:03:00]}  O-O {[%clk 0:02:59]} 6. Be2 {[%clk 0:03:01]}  Nc6 {[%clk 0:02:57]} 7. d5 {[%clk 0:02:56]}  Nb8 {[%clk 0:02:56]} 8. Be3 {[%clk 0:02:52]}  a5 {[%clk 0:02:53]} 9. Nd2 {[%clk 0:02:41]}  e5 {[%clk 0:02:53]} 10. h4 {[%clk 0:02:39]}  h5 {[%clk 0:02:49]} 11. f3 {[%clk 0:02:11]}  c6 {[%clk 0:02:46]} 12. g4 {[%clk 0:02:07]}  cxd5 {[%clk 0:02:46]} 13. cxd5 {[%clk 0:02:05]}  Na6 {[%clk 0:02:45]} 14. Bg5 {[%clk 0:01:49]}  Qb6 {[%clk 0:02:36]} 15. Nc4 {[%clk 0:01:15]}  Qd8 {[%clk 0:02:27]} 16. gxh5 {[%clk 0:01:14]}  gxh5 {[%clk 0:02:26]} 17. Rg1 {[%clk 0:01:05]}  Kh8 {[%clk 0:02:22]} 18. Qd2 {[%clk 0:00:54]}  Rg8 {[%clk 0:02:06]} 19. O-O-O {[%clk 0:00:53]}  Nc5 {[%clk 0:01:44]} 20. Nb5 {[%clk 0:00:39]}  Ra6 {[%clk 0:01:40]} 21. Bh6 {[%clk 0:00:20]}  Bxh6 {[%clk 0:01:09]} 22. Qxh6+ {[%clk 0:00:20]}  Nh7 {[%clk 0:01:10]} 23. Qxh5 {[%clk 0:00:17]}  Rxg1 {[%clk 0:01:00]} 24. Rxg1 {[%clk 0:00:16]}  Qf6 {[%clk 0:01:01]} 25. Nc7 {[%clk 0:00:12]}  Qf4+ {[%clk 0:00:43]} 26. Kb1 {[%clk 0:00:11]}  Qh2 {[%clk 0:00:42]} 27. Re1 {[%clk 0:00:07]}  Qf2 {[%clk 0:00:40]} 28. Rc1 {[%clk 0:00:05]}  Qxe2 {[%clk 0:00:28]} 29. Qxf7 {[%clk 0:00:05]}  Bd7 {[%clk 0:00:08]} 30. Nxa6 {[%clk 0:00:04]}  Nd3 {[%clk 0:00:06]} 31. Qxd7 {[%clk 0:00:03]}  Nxc1 {[%clk 0:00:06]} 32. Qc8+ {[%clk 0:00:03]}  Kg7 {[%clk 0:00:06]} 33. Kxc1 {[%clk 0:00:03]}  Qf1+ {[%clk 0:00:05]} 34. Kc2 {[%clk 0:00:04]}  Qxf3 {[%clk 0:00:03]} 35. Nc7 {[%clk 0:00:02]}  Qxe4+ {[%clk 0:00:03]} 36. Kb3 {[%clk 0:00:03]}  Qd3+ {[%clk 0:00:03]} 37. Ka4 {[%clk 0:00:03]}  Qxc4+ {[%clk 0:00:04]} 38. Kxa5 {[%clk 0:00:04]}  b6+ {[%clk 0:00:01]} 39. Kxb6 {[%clk 0:00:03]}  Qc5+ {[%clk 0:00:02]} 40. Kb7 {[%clk 0:00:04]}  Nf6 {[%clk 0:00:03]} 41. Na6 {[%clk 0:00:02]}  Qxd5+ {[%clk 0:00:03]} 42. Kb8 {[%clk 0:00:02]}  Qf7 {[%clk 0:00:03]} 43. Qc7 {[%clk 0:00:02]}  e4 {[%clk 0:00:03]} 44. Qxf7+ {[%clk 0:00:02]}  Kxf7 {[%clk 0:00:04]} 45. Nb4 {[%clk 0:00:03]}  e3 {[%clk 0:00:04]} 46. Nc2 {[%clk 0:00:04]}  e2 {[%clk 0:00:05]} 47. a4 {[%clk 0:00:04]}  d5 {[%clk 0:00:05]} 48. a5 {[%clk 0:00:05]}  Nd7+ {[%clk 0:00:05]} 49. Kc7 {[%clk 0:00:05]}  Nc5 {[%clk 0:00:06]} 50. b4 {[%clk 0:00:05]}  Na6+ {[%clk 0:00:06]} 51. Kb6 {[%clk 0:00:05]}  Nxb4 {[%clk 0:00:07]} 52. a6 {[%clk 0:00:04]}  Nxa6 {[%clk 0:00:06]} 53. Kxa6 {[%clk 0:00:04]}  d4 {[%clk 0:00:07]} 54. Ne1 {[%clk 0:00:02]}  Kg6 {[%clk 0:00:06]} 55. Kb5 {[%clk 0:00:02]}  Kh5 {[%clk 0:00:05]} 56. Kc4 {[%clk 0:00:03]}  Kxh4 {[%clk 0:00:06]} 57. Kxd4 {[%clk 0:00:03]}  Kg3 {[%clk 0:00:07]} 58. Ke3 {[%clk 0:00:04]}  Kh2 {[%clk 0:00:07]} 59. Kxe2 {[%clk 0:00:05]} 1/2-1/2


[Site "https://www.chess.com"]

[Event "Titled Tuesday Blitz June 20 Early 2023"]
[White "Mayaud, Raphael"]
[Black "Ning, Kaiyu"]
[WhiteFideId "627151"]
[BlackFideId "8614750"]
[WhiteElo "2191"]
[BlackElo "2287"]
[Result "0-1"]
[Round "2"]
[TimeControl "180+2"]
[Date "2023.06.20"]
[WhiteClock "0:00:03"]
[BlackClock "0:02:02"]
[Board "170"]

1. e4 {[%clk 0:03:00]}  c5 {[%clk 0:02:56]} 2. Bc4 {[%clk 0:02:57]}  e6 {[%clk 0:02:56]} 3. Nf3 {[%clk 0:02:54]}  a6 {[%clk 0:02:56]} 4. O-O {[%clk 0:02:53]}  b5 {[%clk 0:02:56]} 5. Be2 {[%clk 0:02:44]}  Bb7 {[%clk 0:02:55]} 6. Nc3 {[%clk 0:02:39]}  b4 {[%clk 0:02:55]} 7. Na4 {[%clk 0:02:31]}  Bxe4 {[%clk 0:02:53]} 8. Bd3 {[%clk 0:02:15]}  Bxd3 {[%clk 0:02:50]} 9. cxd3 {[%clk 0:02:14]}  Nc6 {[%clk 0:02:50]} 10. b3 {[%clk 0:02:03]}  d6 {[%clk 0:02:45]} 11. Bb2 {[%clk 0:01:56]}  e5 {[%clk 0:02:45]} 12. Re1 {[%clk 0:01:52]}  Be7 {[%clk 0:02:46]} 13. h3 {[%clk 0:01:47]}  Nf6 {[%clk 0:02:45]} 14. Qc2 {[%clk 0:01:37]}  O-O {[%clk 0:02:45]} 15. Ng5 {[%clk 0:01:31]}  h6 {[%clk 0:02:43]} 16. Ne4 {[%clk 0:01:29]}  Nd5 {[%clk 0:02:43]} 17. Qc4 {[%clk 0:01:15]}  Nf4 {[%clk 0:02:41]} 18. a3 {[%clk 0:01:09]}  d5 {[%clk 0:02:40]} 19. Qc2 {[%clk 0:01:02]}  dxe4 {[%clk 0:02:39]} 20. Rxe4 {[%clk 0:00:58]}  Qxd3 {[%clk 0:02:34]} 21. Qxd3 {[%clk 0:00:56]}  Nxd3 {[%clk 0:02:35]} 22. Bxe5 {[%clk 0:00:43]}  Ndxe5 {[%clk 0:02:32]} 23. Nb6 {[%clk 0:00:42]}  Rad8 {[%clk 0:02:31]} 24. Rd1 {[%clk 0:00:36]}  Rd3 {[%clk 0:02:30]} 25. f4 {[%clk 0:00:34]}  Nd7 {[%clk 0:02:22]} 26. Nxd7 {[%clk 0:00:29]}  Rxd7 {[%clk 0:02:21]} 27. f5 {[%clk 0:00:28]}  bxa3 {[%clk 0:02:10]} 28. Ra1 {[%clk 0:00:27]}  Rxd2 {[%clk 0:02:02]} 29. Rxa3 {[%clk 0:00:23]}  Rd4 {[%clk 0:01:57]} 30. Rxd4 {[%clk 0:00:19]}  Nxd4 {[%clk 0:01:56]} 31. Rxa6 {[%clk 0:00:20]}  Nxb3 {[%clk 0:01:56]} 32. Rc6 {[%clk 0:00:19]}  Bf6 {[%clk 0:01:56]} 33. Rc7 {[%clk 0:00:19]}  Bd4+ {[%clk 0:01:57]} 34. Kh2 {[%clk 0:00:13]}  Be5+ {[%clk 0:01:56]} 35. g3 {[%clk 0:00:13]}  Bxc7 {[%clk 0:01:57]} 36. Kg2 {[%clk 0:00:11]}  c4 {[%clk 0:01:58]} 37. g4 {[%clk 0:00:10]}  c3 {[%clk 0:01:58]} 38. Kf2 {[%clk 0:00:09]}  c2 {[%clk 0:01:59]} 39. Ke2 {[%clk 0:00:09]}  c1=Q {[%clk 0:01:59]} 40. Kf3 {[%clk 0:00:09]}  Re8 {[%clk 0:01:59]} 41. Kg2 {[%clk 0:00:04]}  Re3 {[%clk 0:02:00]} 42. Kf2 {[%clk 0:00:04]}  Qd2+ {[%clk 0:02:01]} 43. Kf1 {[%clk 0:00:03]}  Re1# {[%clk 0:02:02]} 0-1


[Site "https://www.chess.com"]

[Event "Titled Tuesday Blitz June 20 Early 2023"]
[White "Toropov, Pavel"]
[Black "Afanasieva, Alexandra"]
[WhiteFideId "24129178"]
[BlackFideId "34126926"]
[WhiteElo "2182"]
[BlackElo "1736"]
[Result "1-0"]
[Round "2"]
[TimeControl "180+2"]
[Date "2023.06.20"]
[WhiteClock "0:02:15"]
[BlackClock "0:00:12"]
[Board "172"]

1. e3 {[%clk 0:02:55]}  d5 {[%clk 0:02:59]} 2. b3 {[%clk 0:02:56]}  Nf6 {[%clk 0:02:58]} 3. Bb2 {[%clk 0:02:57]}  g6 {[%clk 0:02:58]} 4. f4 {[%clk 0:02:58]}  Bg7 {[%clk 0:02:59]} 5. Nf3 {[%clk 0:02:57]}  O-O {[%clk 0:02:59]} 6. Nc3 {[%clk 0:02:49]}  c5 {[%clk 0:02:59]} 7. g3 {[%clk 0:02:46]}  Bg4 {[%clk 0:02:22]} 8. Bg2 {[%clk 0:02:41]}  d4 {[%clk 0:02:18]} 9. exd4 {[%clk 0:02:41]}  cxd4 {[%clk 0:02:19]} 10. Ne2 {[%clk 0:02:40]}  Nc6 {[%clk 0:01:51]} 11. h3 {[%clk 0:02:37]}  d3 {[%clk 0:00:57]} 12. hxg4 {[%clk 0:02:33]}  Nb4 {[%clk 0:00:39]} 13. Ned4 {[%clk 0:02:22]}  Nxg4 {[%clk 0:00:12]} 14. c3 {[%clk 0:02:15]} 1-0


[Site "https://www.chess.com"]